fUST/lending_fUST_20250923
["ID","MTS","AMOUNT","RATE_DAILY","PERIOD"]
[387201092,1758640240682,-480.0,0.00019452,2]
[387201093,1758640240691,-271.83981498,0.00019452,2]
[387201094,1758640240702,-1402.61,0.00019452,2]
[387201095,1758640240711,-785.28,0.00019452,2]
[387201096,1758640240721,-1860.31,0.00019452,2]
[387201097,1758640240730,-480.0,0.00019452,2]
[387201098,1758640240740,-480.0,0.00019452,2]
[387201099,1758640240749,-480.0,0.00019452,2]
[387201100,1758640240758,-679.27,0.00019452,2]
[387201101,1758640240767,-480.0,0.00019452,2]
[387201102,1758640240776,-556.65,0.00019452,2]
[387201103,1758640240786,-192.82163182,0.00019452,2]
[387201104,1758640240796,-624.57,0.00019452,2]
[387201105,1758640240806,-480.0,0.00019452,2]
[387201106,1758640240815,-480.0,0.00019452,2]
[387201107,1758640240825,-480.0,0.00019452,2]
[387201108,1758640240834,-480.0,0.00019452,2]
[387201109,1758640240844,-626.02041284,0.00019452,2]
[387201110,1758640240853,-480.0,0.00019452,2]
[387201111,1758640240863,-480.0,0.00019452,2]
[387201113,1758640240873,-480.0,0.00019452,2]
[387201114,1758640240883,-3250.9,0.00019452,2]
[387201116,1758640240892,-480.0,0.00019452,2]
[387201117,1758640240901,-983.52,0.00019452,2]
[387201119,1758640240910,-492.17,0.00019452,2]
[387201120,1758640240920,-480.0,0.00019452,2]
[387201122,1758640240929,-480.0,0.00019452,2]
[387201124,1758640240939,-1265.71,0.00019452,2]
[387201125,1758640240948,-480.0,0.00019452,2]
[387201127,1758640240957,-493.58,0.00019452,2]
[387201128,1758640240967,-480.0,0.00019452,2]
[387201130,1758640240976,-480.0,0.00019452,2]
[387201132,1758640240986,-480.0,0.00019452,2]
[387201133,1758640241005,-480.0,0.00019452,2]
[387201135,1758640241019,-516.48,0.00019452,2]
[387201137,1758640241028,-480.0,0.00019452,2]
[387201138,1758640241037,-480.0,0.00019452,2]
[387201140,1758640241046,-480.0,0.00019452,2]
[387201141,1758640241055,-674.64,0.00019452,2]
[387201143,1758640241064,-480.0,0.00019452,2]
[387201144,1758640241073,-540.90046425,0.00019452,2]
[387201146,1758640241083,-480.0,0.00019452,2]
[387201148,1758640241092,-516.5,0.00019452,2]
[387201149,1758640241101,-675.25,0.00019452,2]
[387201151,1758640241111,-480.0,0.00019452,2]
[387201153,1758640241120,-330.68640284,0.00019452,2]
[387201154,1758640241129,-480.0,0.00019452,2]
[387201156,1758640241140,-480.0,0.00019452,2]
[387201157,1758640241149,-613.77,0.00019452,2]
[387201159,1758640241159,-503.67,0.00019452,2]
[387201161,1758640241168,-480.0,0.00019452,2]
[387201162,1758640241177,-480.0,0.00019452,2]
[387201164,1758640241186,-480.0,0.00019452,2]
[387201165,1758640241195,-480.0,0.00019452,2]
[387201167,1758640241205,-480.0,0.00019452,2]
[387201168,1758640241214,-251.0,0.00019644,3]
[387201170,1758640241223,-1468.25,0.00019716,3]
[387201172,1758640241232,-734.12,0.00019716,3]
[387201173,1758640241242,-367.06,0.00019716,3]
[387201175,1758640241252,-183.53,0.00019716,3]
[387201176,1758640241261,-550.63,0.00019716,3]
[387201178,1758640241271,-6929.88,0.00019725,2]
[387201180,1758640241281,-143.51927908,0.00019725,2]
[387201182,1758640241294,-336.48072092,0.00019725,2]
[387201183,1758640241303,-494.84,0.00019725,2]
[387201185,1758640241312,-583.2464814,0.00019726,2]
[387201186,1758640241321,-480.0,0.00019726,2]
[387201188,1758640241330,-480.0,0.00019726,2]
[387201190,1758640241338,-480.0,0.00019726,2]
[387201191,1758640241347,-32.78347913,0.00019726,2]
[387201235,1758640243410,-480.0,0.00019178,2]
[387201237,1758640243419,-480.0,0.00019452,2]
[387201239,1758640243429,-570.42652087,0.00019726,2]
[387201241,1758640243438,-480.0,0.00019726,2]
[387201243,1758640243447,-561.82089472,0.00019726,2]
[387201245,1758640243456,-480.0,0.00019726,2]
[387201247,1758640243465,-480.0,0.00019726,2]
[387201249,1758640243474,-326.93,0.00019726,2]
[387201251,1758640243483,-480.0,0.00019726,2]
[387201253,1758640243493,-483.52,0.00019726,2]
[387201255,1758640243502,-215.30258441,0.00019726,2]
[387201257,1758640243513,-1187.30741559,0.00019726,2]
[387201259,1758640243522,-785.28,0.00019726,2]
[387201261,1758640243532,-1860.31,0.00019726,2]
[387201263,1758640243542,-480.0,0.00019726,2]
[387201265,1758640243551,-480.0,0.00019726,2]
[387201267,1758640243560,-480.0,0.00019726,2]
[387201269,1758640243569,-679.27,0.00019726,2]
[387201271,1758640243578,-480.0,0.00019726,2]
[387201273,1758640243587,-556.65,0.00019726,2]
[387201275,1758640243596,-624.57,0.00019726,2]
[387201277,1758640243605,-480.0,0.00019726,2]
[387201279,1758640243615,-480.0,0.00019726,2]
[387201281,1758640243624,-480.0,0.00019726,2]
[387201283,1758640243634,-3250.9,0.00019726,2]
[387201285,1758640243643,-480.0,0.00019726,2]
[387201287,1758640243653,-983.52,0.00019726,2]
[387201289,1758640243662,-492.17,0.00019726,2]
[387201291,1758640243672,-480.0,0.00019726,2]
[387201293,1758640243681,-480.0,0.00019726,2]
[387201295,1758640243690,-1265.71,0.00019726,2]
[387201297,1758640243702,-480.0,0.00019726,2]
[387201299,1758640243712,-480.0,0.00019726,2]
[387201301,1758640243721,-480.0,0.00019726,2]
[387201303,1758640243731,-480.0,0.00019726,2]
[387201305,1758640243740,-480.0,0.00019726,2]
[387201307,1758640243750,-516.48,0.00019726,2]
[387201309,1758640243759,-480.0,0.00019726,2]
[387201311,1758640243768,-480.0,0.00019726,2]
[387201312,1758640243779,-480.0,0.00019726,2]
[387201313,1758640243788,-674.64,0.00019726,2]
[387201314,1758640243797,-480.0,0.00019726,2]
[387201315,1758640243806,-480.0,0.00019726,2]
[387201316,1758640243816,-516.5,0.00019726,2]
[387201317,1758640243827,-675.25,0.00019726,2]
[387201318,1758640243836,-480.0,0.00019726,2]
[387201319,1758640243845,-386.8311463,0.00019726,2]
[387201320,1758640243855,-480.0,0.00019726,2]
[387201321,1758640243864,-613.77,0.00019726,2]
[387201322,1758640243873,-503.67,0.00019726,2]
[387201323,1758640243884,-480.0,0.00019726,2]
[387201324,1758640243893,-480.0,0.00019726,2]
[387201325,1758640243902,-480.0,0.00019726,2]
[387201326,1758640243911,-480.0,0.00019726,2]
[387201327,1758640243921,-480.0,0.00019726,2]
[387201328,1758640243930,-978.0,0.00019756,2]
[387201329,1758640243939,-500.0,0.00019762,2]
[387201330,1758640243948,-5188.74227696,0.000199,2]
[387201331,1758640243958,-500.64383585,0.00019997,2]
[387201332,1758640243967,-500.0,0.00019997,2]
[387201333,1758640243976,-6929.88,0.00019999,2]
[387201334,1758640243985,-206.51,0.00019999,2]
[387201335,1758640243995,-494.84,0.00019999,2]
[387201336,1758640244004,-480.0,0.0002,2]
[387201337,1758640244014,-480.0,0.0002,2]
[387201338,1758640244023,-603.21,0.0002,2]
[387201339,1758640244034,-480.0,0.0002,2]
[387201340,1758640244044,-480.0,0.0002,2]
[387201341,1758640244054,-480.0,0.0002,2]
[387201342,1758640244064,-480.0,0.0002,2]
[387201343,1758640244073,-483.52,0.0002,2]
[387201344,1758640244083,-1402.61,0.0002,2]
[387201345,1758640244092,-785.28,0.0002,2]
[387201346,1758640244102,-1860.31,0.0002,2]
[387201347,1758640244111,-480.0,0.0002,2]
[387201348,1758640244121,-563.27,0.0002,2]
[387201349,1758640244131,-480.0,0.0002,2]
[387201350,1758640244140,-679.27,0.0002,2]
[387201351,1758640244150,-480.0,0.0002,2]
[387201352,1758640244160,-556.65,0.0002,2]
[387201353,1758640244170,-624.57,0.0002,2]
[387201354,1758640244180,-480.0,0.0002,2]
[387201355,1758640244190,-480.0,0.0002,2]
[387201356,1758640244199,-480.0,0.0002,2]
[387201357,1758640244208,-480.0,0.0002,2]
[387201358,1758640244319,-3250.9,0.0002,2]
[387201359,1758640244329,-983.52,0.0002,2]
[387201360,1758640244339,-492.17,0.0002,2]
[387201361,1758640244349,-480.0,0.0002,2]
[387201362,1758640244358,-1265.71,0.0002,2]
[387201363,1758640244367,-480.0,0.0002,2]
[387201364,1758640244376,-480.0,0.0002,2]
[387201365,1758640244385,-480.0,0.0002,2]
[387201366,1758640244395,-480.0,0.0002,2]
[387201367,1758640244404,-480.0,0.0002,2]
[387201368,1758640244413,-480.0,0.0002,2]
[387201369,1758640244423,-516.48,0.0002,2]
[387201370,1758640244432,-480.0,0.0002,2]
[387201371,1758640244441,-480.0,0.0002,2]
[387201372,1758640244451,-480.0,0.0002,2]
[387201373,1758640244460,-674.64,0.0002,2]
[387201374,1758640244470,-480.0,0.0002,2]
[387201375,1758640244479,-480.0,0.0002,2]
[387201376,1758640244488,-516.5,0.0002,2]
[387201377,1758640244498,-675.25,0.0002,2]
[387201378,1758640244507,-480.0,0.0002,2]
[387201379,1758640244518,-480.0,0.0002,2]
[387201380,1758640244529,-613.77,0.0002,2]
[387201381,1758640244538,-503.67,0.0002,2]
[387201382,1758640244547,-480.0,0.0002,2]
[387201383,1758640244556,-480.0,0.0002,2]
[387201384,1758640244566,-480.0,0.0002,2]
[387201385,1758640244575,-480.0,0.0002,2]
[387201386,1758640244584,-480.0,0.0002,2]
[387201387,1758640244593,-500.0,0.00020079,2]
[387201388,1758640244603,-500.0,0.0002023,2]
[387201389,1758640244614,-480.0,0.00020273,2]
[387201390,1758640244624,-480.0,0.00020273,2]
[387201391,1758640244635,-603.21,0.00020273,2]
[387201392,1758640244644,-480.0,0.00020273,2]
[387201393,1758640244655,-480.0,0.00020273,2]
[387201394,1758640244665,-480.0,0.00020273,2]
[387201395,1758640244677,-480.0,0.00020273,2]
[387201396,1758640244689,-483.52,0.00020273,2]
[387201397,1758640244699,-1402.61,0.00020273,2]
[387201398,1758640244709,-785.28,0.00020273,2]
[387201399,1758640244720,-1860.31,0.00020273,2]
[387201400,1758640244730,-480.0,0.00020273,2]
[387201401,1758640244739,-607.86629222,0.00020273,2]
[387201402,1758640244749,-679.27,0.00020273,2]
[387201403,1758640244758,-6929.88,0.00020273,2]
[387201404,1758640244768,-480.0,0.00020273,2]
[387201405,1758640244777,-556.65,0.00020273,2]
[387201406,1758640244788,-624.57,0.00020273,2]
[387201407,1758640244797,-480.0,0.00020273,2]
[387201408,1758640244807,-480.0,0.00020273,2]
[387201409,1758640244817,-480.0,0.00020273,2]
[387201410,1758640244827,-480.0,0.00020273,2]
[387201411,1758640244836,-3250.9,0.00020273,2]
[387201412,1758640244845,-983.52,0.00020273,2]
[387201413,1758640244855,-492.17,0.00020273,2]
[387201414,1758640244865,-480.0,0.00020273,2]
[387201415,1758640244874,-1265.71,0.00020273,2]
[387201416,1758640244884,-480.0,0.00020273,2]
[387201417,1758640244893,-480.0,0.00020273,2]
[387201418,1758640244903,-423.32079565,0.00020273,2]
[387201419,1758640244912,-480.0,0.00020273,2]
[387201420,1758640244922,-480.0,0.00020273,2]
[387201421,1758640244931,-467.96482808,0.00020273,2]
[387201422,1758640244940,-480.0,0.00020273,2]
[387201423,1758640244950,-480.0,0.00020273,2]
[387201424,1758640244959,-674.64,0.00020273,2]
[387201425,1758640244969,-516.48,0.00020273,2]
[387201426,1758640244979,-480.0,0.00020273,2]
[387201427,1758640244989,-480.0,0.00020273,2]
[387201428,1758640244999,-494.84,0.00020273,2]
[387201429,1758640245009,-516.5,0.00020273,2]
[387201430,1758640245019,-675.25,0.00020273,2]
[387201431,1758640245029,-480.0,0.00020273,2]
[387201432,1758640245038,-613.77,0.00020273,2]
[387201433,1758640245048,-503.67,0.00020273,2]
[387201434,1758640245058,-480.0,0.00020273,2]
[387201435,1758640245068,-480.0,0.00020273,2]
[387201436,1758640245078,-480.0,0.00020273,2]
[387201437,1758640245088,-480.0,0.00020273,2]
[387201438,1758640245097,-480.0,0.00020273,2]
[387201439,1758640245107,-160.0,0.00020299,2]
[387201440,1758640245117,-160.0,0.00020299,2]
[387201441,1758640245127,-417.15472785,0.00020299,2]
[387201442,1758640245136,-160.0,0.00020299,2]
[387201443,1758640245145,-160.0,0.00020299,2]
[387201444,1758640245154,-233.58652103,0.00020299,2]
[387201445,1758640245164,-1000.0,0.0002031,2]
[387201446,1758640245173,-28436.39745622,0.00020447,3]
[387201447,1758640245183,-417.15472785,0.00020447,3]
[387201448,1758640245192,-1675.35,0.00020517,2]
[387201449,1758640245201,-507.82514297,0.00020544,2]
[387201450,1758640245211,-480.0,0.00020547,2]
[387201451,1758640245221,-480.0,0.00020547,2]
[387201452,1758640245230,-603.21,0.00020547,2]
[387201453,1758640245240,-150.425,0.00020547,2]
[387201454,1758640245251,-480.0,0.00020547,2]
[387201455,1758640245261,-480.0,0.00020547,2]
[387201456,1758640245270,-480.0,0.00020547,2]
[387201457,1758640245280,-480.0,0.00020547,2]
[387201458,1758640245290,-483.52,0.00020547,2]
[387201459,1758640245299,-1402.61,0.00020547,2]
[387201460,1758640245309,-785.28,0.00020547,2]
[387201461,1758640245318,-1860.31,0.00020547,2]
[387201462,1758640245328,-480.0,0.00020547,2]
[387201463,1758640245337,-679.27,0.00020547,2]
[387201464,1758640245347,-6929.88,0.00020547,2]
[387201465,1758640245357,-480.0,0.00020547,2]
[387201466,1758640245367,-556.65,0.00020547,2]
[387201467,1758640245377,-624.57,0.00020547,2]
[387201468,1758640245387,-480.0,0.00020547,2]
[387201469,1758640245396,-480.0,0.00020547,2]
[387201470,1758640245406,-480.0,0.00020547,2]
[387201471,1758640245415,-3250.9,0.00020547,2]
[387201472,1758640245425,-983.52,0.00020547,2]
[387201473,1758640245437,-480.0,0.00020547,2]
[387201474,1758640245447,-492.17,0.00020547,2]
[387201475,1758640245456,-480.0,0.00020547,2]
[387201476,1758640245466,-1265.71,0.00020547,2]
[387201477,1758640245477,-182.77359516,0.00020547,2]
[387201478,1758640245487,-480.0,0.00020547,2]
[387201479,1758640245497,-480.0,0.00020547,2]
[387201480,1758640245506,-480.0,0.00020547,2]
[387201481,1758640245516,-480.0,0.00020547,2]
[387201482,1758640245525,-480.0,0.00020547,2]
[387201483,1758640245536,-674.64,0.00020547,2]
[387201484,1758640245545,-516.48,0.00020547,2]
[387201485,1758640245555,-480.0,0.00020547,2]
[387201486,1758640245565,-480.0,0.00020547,2]
[387201487,1758640245574,-494.84,0.00020547,2]
[387201488,1758640245584,-516.5,0.00020547,2]
[387201489,1758640245593,-675.25,0.00020547,2]
[387201490,1758640245602,-480.0,0.00020547,2]
[387201491,1758640245612,-613.77,0.00020547,2]
[387201492,1758640245621,-503.67,0.00020547,2]
[387201493,1758640245630,-480.0,0.00020547,2]
[387201494,1758640245639,-480.0,0.00020547,2]
[387201495,1758640245648,-480.0,0.00020547,2]
[387201496,1758640245658,-480.0,0.00020547,2]
[387201497,1758640245667,-480.0,0.00020547,2]
[387201498,1758640245677,-1000.0,0.00020627,2]
[387201499,1758640245686,-1000.0,0.00020778,2]
[387201500,1758640245696,-480.0,0.00020821,2]
[387201502,1758640245707,-222.53119266,0.00020821,2]
[387201503,1758640245716,-603.21,0.00020821,2]
[387201505,1758640245725,-480.0,0.00020821,2]
[387201506,1758640245734,-480.0,0.00020821,2]
[387201507,1758640245743,-480.0,0.00020821,2]
[387201508,1758640245752,-480.0,0.00020821,2]
[387201509,1758640245761,-483.52,0.00020821,2]
[387201510,1758640245770,-1402.61,0.00020821,2]
[387201511,1758640245781,-785.28,0.00020821,2]
[387201512,1758640245790,-1860.31,0.00020821,2]
[387201513,1758640245799,-480.0,0.00020821,2]
[387201514,1758640245808,-679.27,0.00020821,2]
[387201515,1758640245817,-6929.88,0.00020821,2]
[387201516,1758640245826,-480.0,0.00020821,2]
[387201517,1758640245835,-556.65,0.00020821,2]
[387201518,1758640245844,-624.57,0.00020821,2]
[387201519,1758640245853,-480.0,0.00020821,2]
[387201520,1758640245863,-480.0,0.00020821,2]
[387201521,1758640245872,-480.0,0.00020821,2]
[387201522,1758640245881,-3250.9,0.00020821,2]
[387201523,1758640245890,-983.52,0.00020821,2]
[387201524,1758640245899,-480.0,0.00020821,2]
[387201525,1758640245908,-492.17,0.00020821,2]
[387201526,1758640245917,-480.0,0.00020821,2]
[387201527,1758640245926,-1265.71,0.00020821,2]
[387201528,1758640245935,-221.20475736,0.00020821,2]
[387201529,1758640245944,-480.0,0.00020821,2]
[387201530,1758640245953,-480.0,0.00020821,2]
[387201531,1758640245962,-480.0,0.00020821,2]
[387201532,1758640245972,-480.0,0.00020821,2]
[387201533,1758640245980,-674.64,0.00020821,2]
[387201534,1758640245990,-516.48,0.00020821,2]
[387201535,1758640245998,-252.55297281,0.00020821,2]
[387201536,1758640246008,-480.0,0.00020821,2]
[387201537,1758640246017,-494.84,0.00020821,2]
[387201538,1758640246025,-516.5,0.00020821,2]
[387201539,1758640246035,-675.25,0.00020821,2]
[387201540,1758640246044,-480.0,0.00020821,2]
[387201541,1758640246054,-613.77,0.00020821,2]
[387201542,1758640246063,-503.67,0.00020821,2]
[387201543,1758640246072,-480.0,0.00020821,2]
[387201544,1758640246081,-480.0,0.00020821,2]
[387201545,1758640246090,-480.0,0.00020821,2]
[387201546,1758640246099,-480.0,0.00020821,2]
[387201547,1758640246108,-847.95915998,0.00020858,2]
[387201548,1758640246117,-5188.74227696,0.00020972,2]
[387201549,1758640246126,-3000.0,0.00021,2]
[387201550,1758640246135,-3000.0,0.0002101,2]
[387201551,1758640246145,-3000.0,0.0002102,2]
[387201552,1758640246154,-3000.0,0.0002103,2]
[387201553,1758640246163,-3000.0,0.0002104,2]
[387201554,1758640246172,-3000.0,0.0002105,2]
[387201555,1758640246181,-3000.0,0.0002106,2]
[387201556,1758640246190,-3000.0,0.0002107,2]
[387201557,1758640246199,-5056.966108,0.0002108,2]
[387201558,1758640246208,-2936.5,0.00021086,3]
[387201559,1758640246217,-1468.24,0.00021086,3]
[387201560,1758640246226,-734.12,0.00021086,3]
[387201561,1758640246235,-367.06,0.00021086,3]
[387201562,1758640246244,-480.0,0.00021095,2]
[387201563,1758640246253,-603.21,0.00021095,2]
[387201564,1758640246263,-480.0,0.00021095,2]
[387201565,1758640246272,-480.0,0.00021095,2]
[387201566,1758640246281,-480.0,0.00021095,2]
[387201567,1758640246290,-483.52,0.00021095,2]
[387201568,1758640246299,-1402.61,0.00021095,2]
[387201569,1758640246308,-785.28,0.00021095,2]
[387201570,1758640246317,-1860.31,0.00021095,2]
[387201571,1758640246326,-202.56789221,0.00021095,2]
[387201572,1758640246335,-679.27,0.00021095,2]
[387201573,1758640246344,-6929.88,0.00021095,2]
[387201574,1758640246353,-480.0,0.00021095,2]
[387201575,1758640246362,-556.65,0.00021095,2]
[387201576,1758640246371,-624.57,0.00021095,2]
[387201577,1758640246380,-480.0,0.00021095,2]
[387201578,1758640246389,-480.0,0.00021095,2]
[387201579,1758640246398,-398.23472819,0.00021095,2]
[387201580,1758640246407,-3250.9,0.00021095,2]
[387201581,1758640246416,-983.52,0.00021095,2]
[387201582,1758640246425,-480.0,0.00021095,2]
[387201583,1758640246434,-492.17,0.00021095,2]
[387201584,1758640246444,-480.0,0.00021095,2]
[387201585,1758640246453,-1265.71,0.00021095,2]
[387201586,1758640246463,-480.0,0.00021095,2]
[387201587,1758640246472,-480.0,0.00021095,2]
[387201588,1758640246482,-397.28744571,0.00021095,2]
[387201589,1758640246491,-480.0,0.00021095,2]
[387201590,1758640246500,-674.64,0.00021095,2]
[387201591,1758640246509,-516.48,0.00021095,2]
[387201592,1758640246518,-480.0,0.00021095,2]
[387201593,1758640246527,-494.84,0.00021095,2]
[387201594,1758640246537,-516.5,0.00021095,2]
[387201595,1758640246546,-675.25,0.00021095,2]
[387201596,1758640246556,-480.0,0.00021095,2]
[387201597,1758640246565,-613.77,0.00021095,2]
[387201598,1758640246574,-503.67,0.00021095,2]
[387201599,1758640246584,-480.0,0.00021095,2]
[387201600,1758640246593,-480.0,0.00021095,2]
[387201601,1758640246603,-480.0,0.00021095,2]
[387201602,1758640246612,-480.0,0.00021095,2]
[387201603,1758640246622,-1500.0,0.00021175,2]
[387201604,1758640246631,-220.0,0.00021288,4]
[387201605,1758640246641,-1577.13362676,0.00021326,2]
[387201606,1758640246651,-603.21,0.00021369,2]
[387201607,1758640246660,-480.0,0.00021369,2]
[387201608,1758640246669,-480.0,0.00021369,2]
[387201609,1758640246679,-480.0,0.00021369,2]
[387201611,1758640246688,-483.52,0.00021369,2]
[387201612,1758640246700,-1402.61,0.00021369,2]
[387201614,1758640246710,-785.28,0.00021369,2]
[387201616,1758640246805,-1860.31,0.00021369,2]
[387201617,1758640246815,-679.27,0.00021369,2]
[387201618,1758640246824,-6929.88,0.00021369,2]
[387201619,1758640246833,-455.82,0.00021369,2]
[387201620,1758640246843,-556.65,0.00021369,2]
[387201621,1758640246852,-624.57,0.00021369,2]
[387201622,1758640246861,-480.0,0.00021369,2]
[387201623,1758640246871,-480.0,0.00021369,2]
[387201624,1758640246880,-3250.9,0.00021369,2]
[387201625,1758640246890,-983.52,0.00021369,2]
[387201626,1758640246899,-480.0,0.00021369,2]
[387201627,1758640246908,-492.17,0.00021369,2]
[387201628,1758640246918,-172.77192329,0.00021369,2]
[387201629,1758640246927,-1265.71,0.00021369,2]
[387201630,1758640246937,-480.0,0.00021369,2]
[387201631,1758640246946,-446.25260595,0.00021369,2]
[387201632,1758640246956,-480.0,0.00021369,2]
[387201633,1758640246966,-674.64,0.00021369,2]
[387201634,1758640246978,-516.48,0.00021369,2]
[387201635,1758640246987,-480.0,0.00021369,2]
[387201636,1758640246997,-494.84,0.00021369,2]
[387201637,1758640247007,-675.25,0.00021369,2]
[387201638,1758640247016,-516.5,0.00021369,2]
[387201639,1758640247026,-480.0,0.00021369,2]
[387201640,1758640247036,-613.77,0.00021369,2]
[387201641,1758640247045,-503.67,0.00021369,2]
[387201642,1758640247056,-480.0,0.00021369,2]
[387201643,1758640247066,-480.0,0.00021369,2]
[387201644,1758640247075,-480.0,0.00021369,2]
[387201645,1758640247086,-480.0,0.00021369,2]
[387201646,1758640247095,-151.79766179,0.0002137,2]
[387201647,1758640247106,-151.0,0.0002137,2]
[387201648,1758640247115,-500.0,0.0002137,2]
[387201649,1758640247125,-151.58183462,0.0002137,2]
[387201650,1758640247134,-151.25006681,0.0002137,2]
[387201651,1758640247144,-289.3035158,0.00021425,2]
[387201652,1758640247153,-354.36969751,0.00021553,2]
[387201653,1758640247163,-603.21,0.00021643,2]
[387201654,1758640247173,-480.0,0.00021643,2]
[387201655,1758640247182,-480.0,0.00021643,2]
[387201656,1758640247192,-480.0,0.00021643,2]
[387201657,1758640247202,-483.52,0.00021643,2]
[387201658,1758640247211,-1402.61,0.00021643,2]
[387201659,1758640247221,-785.28,0.00021643,2]
[387201660,1758640247230,-1860.31,0.00021643,2]
[387201661,1758640247240,-679.27,0.00021643,2]
[387201662,1758640247249,-6929.88,0.00021643,2]
[387201663,1758640247259,-556.65,0.00021643,2]
[387201664,1758640247268,-91.6433301,0.00021643,2]
[387201666,1758640247283,-532.9266699,0.00021643,2]
[387201667,1758640247292,-395.9109269,0.00021643,2]
[387201677,1758640247422,-160.0,0.00020299,2]
[387201679,1758640247431,-160.0,0.00020299,2]
[387201681,1758640247441,-480.0,0.00020821,2]
[387201683,1758640247450,-480.0,0.00021095,2]
[387201685,1758640247459,-480.0,0.00021369,2]
[387201687,1758640247469,-84.0890731,0.00021643,2]
[387201689,1758640247478,-480.0,0.00021643,2]
[387201691,1758640247488,-3250.9,0.00021643,2]
[387201693,1758640247497,-983.52,0.00021643,2]
[387201695,1758640247507,-480.0,0.00021643,2]
[387201697,1758640247516,-492.17,0.00021643,2]
[387201699,1758640247526,-1265.71,0.00021643,2]
[387201701,1758640247537,-387.89880706,0.00021643,2]
[387201702,1758640247547,-480.0,0.00021643,2]
[387201704,1758640247556,-674.64,0.00021643,2]
[387201706,1758640247566,-516.48,0.00021643,2]
[387201708,1758640247575,-480.0,0.00021643,2]
[387201710,1758640247585,-494.84,0.00021643,2]
[387201712,1758640247594,-675.25,0.00021643,2]
[387201714,1758640247606,-516.5,0.00021643,2]
[387201716,1758640247615,-170.33036532,0.00021643,2]
[387201718,1758640247625,-613.77,0.00021643,2]
[387201720,1758640247635,-503.67,0.00021643,2]
[387201722,1758640247644,-480.0,0.00021643,2]
[387201724,1758640247653,-480.0,0.00021643,2]
[387201726,1758640247663,-480.0,0.00021643,2]
[387201728,1758640247672,-480.0,0.00021643,2]
[387201731,1758640247682,-480.0,0.00021643,2]
[387201733,1758640247691,-151.0,0.00021644,2]
[387201734,1758640247705,-500.65471073,0.00021644,2]
[387201736,1758640247714,-500.0,0.00021652,2]
[387201739,1758640247724,-505.80351071,0.00021652,2]
[387201741,1758640247734,-500.0,0.00021652,2]
[387201742,1758640247746,-500.0,0.00021652,2]
[387201744,1758640247755,-500.0,0.00021652,2]
[387201746,1758640247765,-500.0,0.00021652,2]
[387201748,1758640247776,-202.43607174,0.00021652,2]
[387201751,1758640247787,-500.0,0.00021652,2]
[387201752,1758640247796,-500.0,0.00021652,2]
[387201755,1758640247806,-160.0,0.000217,2]
[387201756,1758640247815,-1289.83604946,0.00021723,2]